fUST/lending_fUST_20250930
["ID","MTS","AMOUNT","RATE_DAILY","PERIOD"]
[388436648,1759168243106,-480.0,0.0002371,2]
[388436649,1759168243116,-480.0,0.0002371,2]
[388436651,1759168243126,-480.0,0.0002371,2]
[388436652,1759168243135,-533.88,0.0002371,2]
[388436653,1759168243144,-480.0,0.0002371,2]
[388436654,1759168243154,-500.0,0.00023711,2]
[388436655,1759168243165,-500.0,0.00023711,2]
[388436656,1759168243175,-500.0,0.00023711,2]
[388436658,1759168243185,-151.0,0.00023711,2]
[388436659,1759168243196,-500.0,0.00023711,2]
[388436660,1759168243206,-500.0,0.00023711,2]
[388436661,1759168243216,-151.0,0.00023711,2]
[388436662,1759168243226,-500.0,0.00023711,2]
[388436663,1759168243235,-151.0,0.00023711,2]
[388436665,1759168243245,-500.0,0.00023711,2]
[388436666,1759168243254,-512.41710069,0.00023711,2]
[388436667,1759168243264,-500.0,0.00023711,2]
[388436668,1759168243274,-1568.0,0.00023711,2]
[388436669,1759168243284,-151.0,0.00023711,2]
[388436670,1759168243294,-500.0,0.00023711,2]
[388436672,1759168243303,-500.0,0.00023711,2]
[388436673,1759168243313,-500.0,0.00023711,2]
[388436674,1759168243322,-152.46363671,0.00023711,2]
[388436675,1759168243331,-151.0,0.00023711,2]
[388436676,1759168243341,-500.0,0.00023711,2]
[388436677,1759168243350,-500.0,0.00023711,2]
[388436679,1759168243359,-500.0,0.00023711,2]
[388436680,1759168243368,-151.0,0.00023711,2]
[388436681,1759168243378,-480.0,0.00023711,2]
[388436682,1759168243387,-538.97,0.00023711,2]
[388436683,1759168243396,-480.0,0.00023711,2]
[388436684,1759168243406,-480.0,0.00023711,2]
[388436685,1759168243415,-697.75,0.00023711,2]
[388436687,1759168243424,-643.93,0.00023711,2]
[388436688,1759168243433,-1169.7,0.00023711,2]
[388436689,1759168243443,-629.01,0.00023711,2]
[388436690,1759168243452,-649.28,0.00023711,2]
[388436691,1759168243461,-560.96,0.00023711,2]
[388436692,1759168243470,-480.0,0.00023711,2]
[388436694,1759168243480,-602.44,0.00023711,2]
[388436695,1759168243494,-480.19,0.00023711,2]
[388436696,1759168243503,-555.56,0.00023711,2]
[388436697,1759168243512,-480.0,0.00023711,2]
[388436698,1759168243521,-480.0,0.00023711,2]
[388436699,1759168243531,-749.46,0.00023711,2]
[388436700,1759168243540,-1824.22,0.00023711,2]
[388436701,1759168243549,-480.0,0.00023711,2]
[388436702,1759168243560,-480.0,0.00023711,2]
[388436703,1759168243569,-500.0,0.00023713,3]
[388436704,1759168243579,-800.0,0.00023722,2]
[388436705,1759168243588,-800.0,0.00023728,2]
[388436706,1759168243598,-800.0,0.00023738,2]
[388436707,1759168243607,-800.0,0.00023741,2]
[388436708,1759168243616,-500.0,0.00023773,2]
[388436709,1759168243624,-500.0,0.00023773,2]
[388436710,1759168243634,-500.0,0.00023773,2]
[388436711,1759168243643,-500.0,0.00023773,2]
[388436712,1759168243652,-500.0,0.00023773,2]
[388436713,1759168243661,-500.0,0.00023773,2]
[388436714,1759168243671,-500.0,0.00023773,2]
[388436715,1759168243681,-516.0459655,0.00023773,2]
[388436716,1759168243690,-500.0,0.00023773,2]
[388436717,1759168243699,-500.0,0.00023773,2]
[388436718,1759168243708,-500.0,0.00023773,2]
[388436719,1759168243717,-500.0,0.00023773,2]
[388436720,1759168243726,-500.0,0.00023773,2]
[388436721,1759168243735,-500.0,0.00023773,2]
[388436722,1759168243744,-500.0,0.00023773,2]
[388436723,1759168243754,-500.0,0.00023773,2]
[388436724,1759168243764,-500.0,0.00023773,2]
[388436725,1759168243773,-500.0,0.00023773,2]
[388436726,1759168243782,-500.0,0.00023773,2]
[388436727,1759168243791,-500.0,0.00023773,2]
[388436728,1759168243801,-500.0,0.00023773,2]
[388436729,1759168243810,-500.0,0.00023773,2]
[388436730,1759168243820,-504.06488842,0.00023773,2]
[388436731,1759168243829,-500.0,0.00023773,2]
[388436732,1759168243838,-500.0,0.00023773,2]
[388436733,1759168243848,-509.3829313,0.00023773,2]
[388436734,1759168243857,-500.0,0.00023773,2]
[388436735,1759168243867,-431.25894735,0.00023773,2]
[388436736,1759168243880,-500.0,0.00023773,2]
[388436737,1759168243891,-500.0,0.00023773,2]
[388436738,1759168243901,-163.72715987,0.00023773,2]
[388436739,1759168243911,-500.0,0.00023773,2]
[388436740,1759168243924,-500.0,0.00023773,2]
[388436741,1759168243934,-400.0,0.00023773,2]
[388436742,1759168243944,-500.0,0.00023773,2]
[388436743,1759168243954,-150.0,0.00023773,2]
[388436744,1759168243963,-500.0,0.00023773,2]
[388436745,1759168243973,-500.0,0.00023773,2]
[388436746,1759168243982,-500.0,0.00023773,2]
[388436747,1759168243991,-500.0,0.00023773,2]
[388436748,1759168244001,-500.0,0.00023773,2]
[388436749,1759168244010,-500.0,0.00023773,2]
[388436751,1759168244019,-500.0,0.00023773,2]
[388436752,1759168244029,-500.0,0.00023773,2]
[388436753,1759168244038,-500.0,0.00023773,2]
[388436754,1759168244048,-500.0,0.00023773,2]
[388436755,1759168244058,-151.0,0.00023773,2]
[388436756,1759168244068,-242.46671906,0.00023773,2]
[388436758,1759168244077,-500.0,0.00023773,2]
[388436759,1759168244087,-203.59552185,0.00023773,2]
[388436760,1759168244097,-151.0,0.00023773,2]
[388436761,1759168244106,-500.0,0.00023773,2]
[388436762,1759168244116,-151.45944655,0.00023773,2]
[388436763,1759168244126,-800.0,0.00023773,2]
[388436765,1759168244136,-151.0,0.00023773,7]
[388436766,1759168244146,-151.0,0.00023773,7]
[388436767,1759168244156,-800.0,0.00023779,2]
[388436768,1759168244166,-800.0,0.00023783,2]
[388436769,1759168244176,-7128.93392326,0.00023789,2]
[388436770,1759168244186,-151.0,0.00023789,7]
[388436771,1759168244195,-151.0,0.00023789,7]
[388436773,1759168244205,-151.0,0.00023789,7]
[388436774,1759168244215,-151.0,0.00023789,7]
[388436775,1759168244226,-10000.0,0.00023789,7]
[388436776,1759168244236,-151.0,0.00023789,7]
[388436777,1759168244246,-10000.0,0.00023789,7]
[388436779,1759168244256,-10000.0,0.00023789,7]
[388436780,1759168244265,-10000.0,0.00023789,7]
[388436781,1759168244276,-10000.0,0.00023789,7]
[388436782,1759168244285,-151.0,0.00023789,7]
[388436783,1759168244294,-151.0,0.00023789,7]
[388436784,1759168244304,-151.0,0.00023789,7]
[388436785,1759168244313,-151.0,0.00023789,7]
[388436787,1759168244323,-151.0,0.00023789,7]
[388436788,1759168244332,-2264.347528,0.00023789,7]
[388436789,1759168244342,-2264.347528,0.00023789,7]
[388436790,1759168244352,-2264.347528,0.00023789,7]
[388436791,1759168244361,-2264.347528,0.00023789,7]
[388436792,1759168244372,-151.0,0.00023789,7]
[388436794,1759168244382,-151.0,0.00023789,7]
[388436795,1759168244391,-151.0,0.00023789,7]
[388436796,1759168244401,-151.0,0.00023789,7]
[388436797,1759168244411,-177.683661,0.00023789,7]
[388436798,1759168244422,-151.0,0.00023789,7]
[388436799,1759168244433,-151.0,0.00023789,7]
[388436801,1759168244445,-800.0,0.00023793,2]
[388436802,1759168244455,-800.0,0.00023799,2]
[388436803,1759168244465,-151.0,0.000238,7]
[388436804,1759168244476,-151.0,0.000238,6]
[388436805,1759168244486,-1651.8606292,0.00023808,2]
[388436806,1759168244495,-800.0,0.00023814,2]
[388436808,1759168244505,-800.0,0.00023817,2]
[388436809,1759168244515,-800.0,0.00023839,2]
[388436810,1759168244524,-6590.3991565,0.00023855,2]
[388436811,1759168244534,-800.0,0.00023866,2]
[388436812,1759168244544,-10000.0,0.00023873,2]
[388436813,1759168244553,-7128.93392326,0.00023883,2]
[388436815,1759168244563,-176.55544409,0.00023884,2]
[388436816,1759168244572,-12105.00197644,0.0002389,2]
[388436817,1759168244582,-800.0,0.00023896,2]
[388436818,1759168244591,-800.0,0.00023896,2]
[388436819,1759168244600,-151.0,0.000239,10]
[388436820,1759168244610,-151.0,0.000239,6]
[388436822,1759168244619,-151.0,0.000239,10]
[388436823,1759168244629,-155.1244069,0.0002391,2]
[388436824,1759168244638,-800.0,0.00023927,2]
[388436825,1759168244647,-800.0,0.00023934,2]
[388436826,1759168244657,-800.0,0.00023941,2]
[388436827,1759168244666,-3716.6864157,0.00023947,2]
[388436829,1759168244676,-479.94765416,0.00023952,2]
[388436830,1759168244685,-29694.79190932,0.00023954,2]
[388436831,1759168244694,-800.0,0.00023971,2]
[388436832,1759168244704,-501.4504098,0.00023973,2]
[388436833,1759168244714,-500.0,0.00023973,2]
[388436834,1759168244723,-500.0,0.00023973,2]
[388436836,1759168244771,-500.0,0.00023973,2]
[388436837,1759168244782,-338.07728549,0.00023973,2]
[388436838,1759168244791,-500.0,0.00023973,2]
[388436840,1759168244800,-500.0,0.00023973,2]
[388436841,1759168244809,-507.51756834,0.00023973,2]
[388436842,1759168244818,-500.0,0.00023973,2]
[388436843,1759168244827,-500.0,0.00023973,2]
[388436844,1759168244836,-500.0,0.00023973,2]
[388436845,1759168244847,-480.0,0.00023979,2]
[388436847,1759168244856,-533.92,0.00023979,2]
[388436848,1759168244865,-480.0,0.00023979,2]
[388436849,1759168244879,-480.0,0.00023979,2]
[388436850,1759168244888,-579.9,0.00023979,2]
[388436851,1759168244899,-201.0317241,0.00023979,2]
[388436852,1759168244908,-480.0,0.00023979,2]
[388436854,1759168244917,-480.0,0.00023979,2]
[388436855,1759168244926,-480.0,0.00023979,2]
[388436856,1759168244935,-480.0,0.0002398,2]
[388436857,1759168244945,-645.29,0.0002398,2]
[388436858,1759168244954,-772.85,0.0002398,2]
[388436859,1759168244963,-480.0,0.0002398,2]
[388436860,1759168244973,-480.0,0.0002398,2]
[388436862,1759168244982,-590.03,0.0002398,2]
[388436863,1759168244991,-853.2,0.0002398,2]
[388436864,1759168245000,-1233.94,0.0002398,2]
[388436865,1759168245009,-909.78,0.0002398,2]
[388436866,1759168245019,-609.1,0.0002398,2]
[388436867,1759168245029,-480.0,0.0002398,2]
[388436869,1759168245038,-1622.82,0.0002398,2]
[388436870,1759168245047,-480.0,0.0002398,2]
[388436871,1759168245056,-480.0,0.0002398,2]
[388436872,1759168245066,-1867.12,0.0002398,2]
[388436873,1759168245075,-486.3,0.0002398,2]
[388436874,1759168245084,-520.07,0.0002398,2]
[388436875,1759168245093,-681.36,0.0002398,2]
[388436877,1759168245103,-480.0,0.0002398,2]
[388436878,1759168245113,-499.49,0.0002398,2]
[388436879,1759168245122,-1286.58,0.0002398,2]
[388436880,1759168245132,-8064.19,0.0002398,2]
[388436881,1759168245141,-1159.31,0.0002398,2]
[388436882,1759168245150,-2204.55,0.0002398,2]
[388436884,1759168245161,-1859.67,0.0002398,2]
[388436885,1759168245171,-480.0,0.0002398,2]
[388436886,1759168245181,-2569.86,0.0002398,2]
[388436887,1759168245190,-480.0,0.0002398,2]
[388436888,1759168245200,-480.0,0.00023981,2]
[388436889,1759168245210,-480.0,0.00023981,2]
[388436891,1759168245219,-480.0,0.00023981,2]
[388436892,1759168245228,-480.0,0.00023981,2]
[388436893,1759168245238,-480.0,0.00023981,2]
[388436894,1759168245248,-480.0,0.00023981,2]
[388436895,1759168245257,-480.0,0.00023981,2]
[388436896,1759168245266,-480.0,0.00023981,2]
[388436897,1759168245276,-606.54,0.00023981,2]
[388436899,1759168245287,-727.53,0.00023981,2]
[388436900,1759168245297,-480.0,0.00023981,2]
[388436901,1759168245307,-744.57,0.00023981,2]
[388436902,1759168245316,-480.0,0.00023981,2]
[388436903,1759168245326,-554.59,0.00023981,2]
[388436904,1759168245335,-480.0,0.00023981,2]
[388436906,1759168245344,-707.89,0.00023981,2]
[388436907,1759168245354,-480.0,0.00023981,2]
[388436908,1759168245363,-480.0,0.00023981,2]
[388436909,1759168245372,-480.0,0.00023981,2]
[388436910,1759168245382,-910.87,0.00023981,2]
[388436911,1759168245392,-480.0,0.00023981,2]
[388436913,1759168245402,-532.3,0.00023981,2]
[388436914,1759168245411,-480.0,0.00023981,2]
[388436915,1759168245421,-480.0,0.00023981,2]
[388436916,1759168245430,-480.0,0.00023981,2]
[388436917,1759168245439,-480.0,0.00023981,2]
[388436918,1759168245449,-480.0,0.00023981,2]
[388436919,1759168245459,-480.0,0.00023981,2]
[388436921,1759168245469,-632.43,0.00023981,2]
[388436922,1759168245479,-496.54,0.00023981,2]
[388436923,1759168245488,-480.0,0.00023981,2]
[388436924,1759168245498,-1230.19,0.00023981,2]
[388436925,1759168245507,-480.0,0.00023981,2]
[388436926,1759168245518,-510.58,0.00023981,2]
[388436928,1759168245527,-480.0,0.00023981,2]
[388436929,1759168245537,-480.0,0.00023981,2]
[388436930,1759168245547,-480.0,0.00023981,2]
[388436931,1759168245556,-480.0,0.00023981,2]
[388436932,1759168245565,-487.99538139,0.00023981,2]
[388436933,1759168245575,-480.0,0.00023981,2]
[388436935,1759168245585,-480.0,0.00023981,2]
[388436936,1759168245594,-480.0,0.00023981,2]
[388436937,1759168245603,-480.0,0.00023981,2]
[388436938,1759168245612,-160.7968498,0.00023981,2]
[388436939,1759168245622,-480.0,0.00023981,2]
[388436940,1759168245632,-517.34,0.00023981,2]
[388436942,1759168245641,-518.36,0.00023981,2]
[388436943,1759168245651,-480.0,0.00023981,2]
[388436944,1759168245660,-480.0,0.00023981,2]
[388436945,1759168245669,-480.0,0.00023981,2]
[388436946,1759168245679,-635.95,0.00023981,2]
[388436947,1759168245689,-630.99,0.00023981,2]
[388436949,1759168245698,-500.0,0.00023981,2]
[388436950,1759168245707,-480.0,0.00023981,2]
[388436951,1759168245716,-524.66702181,0.00023981,2]
[388436952,1759168245725,-480.0,0.00023981,2]
[388436953,1759168245735,-480.0,0.00023981,2]
[388436954,1759168245744,-480.0,0.00023981,2]
[388436955,1759168245753,-570.92,0.00023981,2]
[388436957,1759168245762,-506.74,0.00023981,2]
[388436958,1759168245771,-555.96,0.00023981,2]
[388436959,1759168245780,-677.15,0.00023981,2]
[388436960,1759168245790,-480.0,0.00023981,2]
[388436961,1759168245800,-480.0,0.00023981,2]
[388436962,1759168245809,-480.0,0.00023981,2]
[388436964,1759168245819,-1400.7,0.00023981,2]
[388436965,1759168245828,-574.84,0.00023981,2]
[388436966,1759168245838,-480.0,0.00023981,2]
[388436967,1759168245847,-480.0,0.00023981,2]
[388436968,1759168245856,-480.0,0.00023981,2]
[388436969,1759168245866,-598.11,0.00023981,2]
[388436971,1759168245881,-480.0,0.00023981,2]
[388436972,1759168245891,-480.0,0.00023981,2]
[388436973,1759168245902,-480.0,0.00023981,2]
[388436974,1759168245912,-480.0,0.00023981,2]
[388436975,1759168245923,-2045.56,0.00023981,2]
[388436976,1759168245932,-1146.52,0.00023981,2]
[388436978,1759168245942,-539.27,0.00023981,2]
[388436979,1759168245952,-529.48,0.00023981,2]
[388436980,1759168245961,-480.0,0.00023981,2]
[388436981,1759168245971,-480.0,0.00023981,2]
[388436982,1759168245980,-480.0,0.00023981,2]
[388436983,1759168245990,-716.37,0.00023981,2]
[388436985,1759168245999,-535.46,0.00023981,2]
[388436986,1759168246008,-480.0,0.00023981,2]
[388436987,1759168246017,-918.45,0.00023981,2]
[388436988,1759168246027,-480.0,0.00023981,2]
[388436989,1759168246037,-480.0,0.00023981,2]
[388436990,1759168246046,-480.0,0.00023981,2]
[388436991,1759168246055,-480.0,0.00023981,2]
[388436993,1759168246065,-480.0,0.00023981,2]
[388436994,1759168246075,-480.0,0.00023981,2]
[388436995,1759168246086,-480.0,0.00023981,2]
[388436996,1759168246096,-480.0,0.00023981,2]
[388436997,1759168246105,-556.63,0.00023981,2]
[388436998,1759168246114,-480.0,0.00023981,2]
[388437000,1759168246123,-532.76,0.00023981,2]
[388437001,1759168246133,-480.0,0.00023981,2]
[388437002,1759168246143,-480.0,0.00023981,2]
[388437003,1759168246152,-496.03,0.00023981,2]
[388437004,1759168246161,-480.0,0.00023981,2]
[388437005,1759168246171,-562.62,0.00023981,2]
[388437007,1759168246181,-480.0,0.00023981,2]
[388437008,1759168246191,-480.0,0.00023981,2]
[388437009,1759168246200,-480.0,0.00023981,2]
[388437010,1759168246210,-480.0,0.00023981,2]
[388437011,1759168246219,-162.0,0.00023982,3]
[388437012,1759168246229,-176.30180835,0.00023982,3]
[388437013,1759168246238,-480.56,0.00023982,2]
[388437015,1759168246248,-480.0,0.00023982,2]
[388437016,1759168246258,-520.06,0.00023982,2]
[388437017,1759168246267,-538.7,0.00023982,2]
[388437018,1759168246277,-562.67,0.00023982,2]
[388437019,1759168246287,-862.61,0.00023982,2]
[388437020,1759168246298,-480.0,0.00023982,2]
[388437022,1759168246307,-480.0,0.00023982,2]
[388437023,1759168246316,-1973.05,0.00023982,2]
[388437024,1759168246326,-3223.83,0.00023982,2]
[388437025,1759168246335,-480.0,0.00023982,2]
[388437026,1759168246348,-480.0,0.00023982,2]
[388437027,1759168246358,-1336.31,0.00023982,2]
[388437029,1759168246368,-480.0,0.00023982,2]
[388437030,1759168246378,-3856.73,0.00023982,2]
[388437031,1759168246388,-977.73,0.00023982,2]
[388437032,1759168246398,-1074.64,0.00023982,2]
[388437033,1759168246408,-480.0,0.00023982,2]
[388437034,1759168246418,-1949.36,0.00023982,2]
[388437036,1759168246427,-480.0,0.00023983,2]
[388437037,1759168246438,-480.0,0.00023983,2]
[388437038,1759168246448,-515.04,0.00023983,2]
[388437039,1759168246458,-529.36,0.00023983,2]
[388437040,1759168246468,-480.0,0.00023983,2]
[388437041,1759168246477,-480.0,0.00023983,2]
[388437043,1759168246487,-480.0,0.00023983,2]
[388437044,1759168246495,-480.0,0.00023983,2]
[388437045,1759168246503,-563.37,0.00023983,2]
[388437046,1759168246512,-480.0,0.00023983,2]
[388437047,1759168246520,-588.63,0.00023983,2]
[388437048,1759168246529,-480.0,0.00023983,2]
[388437049,1759168246538,-1183.83,0.00023983,2]
[388437051,1759168246547,-898.88,0.00023983,2]
[388437052,1759168246558,-480.0,0.00023983,2]
[388437053,1759168246566,-894.25,0.00023983,2]
[388437054,1759168246574,-873.82,0.00023983,2]
[388437055,1759168246582,-674.98,0.00023983,2]
[388437056,1759168246591,-480.0,0.00023983,2]
[388437058,1759168246601,-480.0,0.00023983,2]
[388437059,1759168246610,-1152.83,0.00023983,2]
[388437060,1759168246619,-480.0,0.00023983,2]
[388437061,1759168246628,-553.31,0.00023983,2]
[388437062,1759168246638,-527.8,0.00023983,2]
[388437063,1759168246647,-480.0,0.00023983,2]
[388437065,1759168246657,-516.29,0.00023983,2]
[388437066,1759168246666,-553.4,0.00023983,2]
[388437067,1759168246676,-713.28,0.00023983,2]
[388437068,1759168246685,-480.0,0.00023983,2]
[388437069,1759168246694,-900.1,0.00023983,2]
[388437070,1759168246703,-480.0,0.00023983,2]
[388437072,1759168246712,-480.0,0.00023983,2]
[388437073,1759168246722,-480.0,0.00023983,2]
[388437074,1759168246732,-914.62,0.00023983,2]
[388437075,1759168246741,-668.23,0.00023983,2]
[388437076,1759168246753,-945.08,0.00023983,2]
[388437077,1759168246762,-620.16,0.00023983,2]
[388437079,1759168246771,-850.4,0.00023983,2]
[388437080,1759168246781,-480.0,0.00023983,2]
[388437081,1759168246791,-480.0,0.00023983,2]
[388437082,1759168246803,-786.93,0.00023983,2]
[388437083,1759168246813,-480.0,0.00023983,2]
[388437084,1759168246824,-557.21,0.00023983,2]
[388437086,1759168246834,-591.3,0.00023983,2]
[388437087,1759168246844,-652.15,0.00023983,2]
[388437088,1759168246853,-480.0,0.00023983,2]
[388437089,1759168246863,-480.0,0.00023983,2]
[388437090,1759168246876,-480.0,0.00023983,2]
[388437091,1759168246886,-480.0,0.00023983,2]
[388437093,1759168246897,-480.0,0.00023983,2]
[388437094,1759168246907,-480.0,0.00023983,2]
[388437095,1759168246916,-480.0,0.00023983,2]
[388437096,1759168246929,-480.0,0.00023983,2]
[388437097,1759168246939,-480.0,0.00023983,2]
[388437098,1759168246949,-783.65,0.00023983,2]
[388437100,1759168246958,-480.0,0.00023983,2]
[388437101,1759168246967,-527.15,0.00023983,2]
[388437102,1759168246976,-480.0,0.00023983,2]
[388437103,1759168246986,-480.0,0.00023983,2]
[388437104,1759168246994,-595.24,0.00023983,2]
[388437105,1759168247002,-598.36,0.00023983,2]
[388437106,1759168247010,-1192.59,0.00023983,2]
[388437108,1759168247019,-556.82,0.00023983,2]
[388437109,1759168247028,-480.0,0.00023983,2]
[388437110,1759168247037,-480.0,0.00023983,2]
[388437111,1759168247047,-823.86,0.00023983,2]
[388437112,1759168247057,-480.0,0.00023983,2]
[388437113,1759168247067,-854.92,0.00023983,2]
[388437115,1759168247077,-480.0,0.00023983,2]
[388437116,1759168247087,-480.0,0.00023983,2]
[388437117,1759168247097,-537.4,0.00023983,2]
[388437118,1759168247107,-480.0,0.00023983,2]
[388437119,1759168247117,-498.05,0.00023983,2]
[388437120,1759168247126,-480.0,0.00023983,2]
[388437122,1759168247136,-1909.08,0.00023983,2]
[388437123,1759168247146,-1094.55,0.00023983,2]
[388437124,1759168247156,-553.82,0.00023983,2]
[388437125,1759168247166,-480.0,0.00023983,2]
[388437126,1759168247176,-480.0,0.00023983,2]
[388437127,1759168247186,-480.0,0.00023983,2]
[388437129,1759168247195,-1636.92,0.00023983,2]
[388437130,1759168247205,-480.0,0.00023983,2]
[388437131,1759168247215,-632.44,0.00023983,2]
[388437132,1759168247226,-480.0,0.00023983,2]
[388437133,1759168247236,-2051.99,0.00023983,2]
[388437134,1759168247246,-980.66,0.00023983,2]
[388437136,1759168247256,-610.06,0.00023983,2]
[388437137,1759168247266,-480.0,0.00023983,2]
[388437138,1759168247277,-1236.58,0.00023983,2]
[388437139,1759168247287,-637.44,0.00023983,2]
[388437140,1759168247296,-737.44,0.00023983,2]
[388437141,1759168247306,-480.0,0.00023983,2]
[388437143,1759168247316,-597.17,0.00023983,2]
[388437144,1759168247326,-1053.96,0.00023983,2]
[388437145,1759168247336,-820.22,0.00023983,2]
[388437146,1759168247346,-2105.91,0.00023983,2]
[388437147,1759168247355,-496.18,0.00023983,2]
[388437148,1759168247366,-4624.01,0.00023983,2]
[388437150,1759168247376,-541.33,0.00023983,2]
[388437151,1759168247386,-480.0,0.00023983,2]
[388437152,1759168247396,-522.35,0.00023983,2]
[388437153,1759168247406,-763.64,0.00023983,2]
[388437154,1759168247416,-2112.74,0.00023983,2]
[388437155,1759168247427,-490.55,0.00023983,2]
[388437157,1759168247460,-480.0,0.00023983,2]
[388437158,1759168247470,-480.0,0.00023983,2]
[388437159,1759168247481,-480.0,0.00023983,2]
[388437160,1759168247492,-571.99,0.00023983,2]
[388437161,1759168247503,-840.65,0.00023983,2]
[388437163,1759168247512,-1096.96,0.00023983,2]
[388437164,1759168247522,-1798.69,0.00023983,2]
[388437165,1759168247533,-480.0,0.00023983,2]
[388437166,1759168247544,-1258.84,0.00023983,2]
[388437167,1759168247553,-480.0,0.00023983,2]
[388437168,1759168247563,-4814.07,0.00023983,2]
[388437170,1759168247573,-480.0,0.00023983,2]
[388437171,1759168247584,-694.2,0.00023983,2]
[388437172,1759168247593,-1055.89,0.00023983,2]
[388437173,1759168247603,-567.75143692,0.00023983,2]
[388437174,1759168247613,-918.69,0.00023983,2]
[388437175,1759168247623,-480.0,0.00023983,2]
[388437177,1759168247632,-2573.01,0.00023983,2]
[388437178,1759168247642,-500.0,0.00023983,2]
[388437179,1759168247652,-480.0,0.00023983,2]
[388437180,1759168247661,-696.63,0.00023983,2]
[388437181,1759168247671,-480.0,0.00023983,2]
[388437182,1759168247682,-480.0,0.00023983,2]
[388437184,1759168247693,-480.0,0.00023983,2]
[388437185,1759168247703,-480.0,0.00023983,2]
[388437186,1759168247712,-2025.26,0.00023983,2]
[388437187,1759168247722,-480.0,0.00023983,2]
[388437188,1759168247732,-5608.8,0.00023983,2]
[388437190,1759168247742,-480.0,0.00023983,2]
[388437191,1759168247752,-536.46,0.00023983,2]
[388437192,1759168247762,-873.4,0.00023983,2]
[388437193,1759168247771,-151.0,0.00023983,7]
[388437194,1759168247781,-480.0,0.00023983,2]
[388437195,1759168247791,-480.0,0.00023983,2]
[388437197,1759168247800,-156.050985,0.00023983,7]
[388437198,1759168247810,-480.0,0.00023983,2]
[388437199,1759168247820,-480.0,0.00023984,2]
[388437200,1759168247830,-480.0,0.00023984,2]
[388437201,1759168247840,-480.0,0.00023984,2]
[388437202,1759168247850,-480.0,0.00023984,2]
[388437204,1759168247859,-480.0,0.00023984,2]
[388437205,1759168247869,-533.88,0.00023984,2]
[388437206,1759168247884,-480.0,0.00023984,2]
[388437207,1759168247894,-151.0,0.00023984,7]
[388437208,1759168247904,-2264.347528,0.00023984,7]
[388437209,1759168247915,-2264.347528,0.00023984,7]
[388437211,1759168247925,-2264.347528,0.00023984,7]
[388437212,1759168247935,-2264.347528,0.00023984,7]
[388437213,1759168247945,-151.0,0.00023984,7]
[388437214,1759168247957,-151.0,0.00023984,7]
[388437215,1759168247967,-151.0,0.00023984,7]
[388437216,1759168247978,-151.0,0.00023984,7]
[388437217,1759168247988,-151.0,0.00023984,7]
[388437218,1759168247998,-500.0,0.00023985,2]
[388437219,1759168248009,-455.54523026,0.00023985,2]
[388437220,1759168248019,-500.0,0.00023985,2]